[Event "38th Barczay Memorial 2019"]
[Site "Zalakaros"]
[Date "2019.05.25"]
[Round "3.8"]
[White "Borsos, Bogdan"]
[Black "Almasi, Istvan"]
[Result "1-0"]
[ECO "B07"]
[WhiteElo "2217"]
[BlackElo "2407"]
[Annotator "NA"]
[PlyCount "102"]
[EventDate "2019.05.23"]
[EventType "swiss"]
[EventCountry "HUN"]
[SourceTitle "playchess.com"]
[Source "ChessBase"]
[SourceQuality "1"]
[TimeControl "40/5400+30:1800+30"]

1. e4 {[%emt 0:06:06]} d6 {[%emt 0:01:29]} 2. d4 {[%emt 0:00:31]} Nf6 {[%emt 0:00:04]} 3. Nc3 {[%emt 0:00:22]} g6 {[%emt 0:00:11]} 4. g3 {[%emt 0:00:07]} Bg7 {[%emt 0:00:35]} 5. Bg2 {[%emt 0:00:06]} O-O {[%emt 0:00:25]} 6. Nge2 {[%emt 0:00:09]} Nbd7 {[%emt 0:00:41]} 7. h3 {[%emt 0:00:50]} Rb8 {[%emt 0:01:02]} 8. a4 {[%emt 0:03:39]} c5 {[%emt 0:03:59]} 9. Be3 {[%emt 0:00:53]} b6 {[%emt 0:00:13]} 10. O-O {[%emt 0:00:48]} cxd4 {[%emt 0:00:23]} 11. Bxd4 {[%emt 0:01:50]} Bb7 {[%emt 0:05:01]} 12. Nd5 {[%emt 0:00:18]} e5 {[%emt 0:01:35]} 13. Be3 {[%emt 0:00:35]} Nxd5 {[%emt 0:00:34]} 14. exd5 {[%emt 0:00:10]} f5 {[%emt 0:00:25]} 15. c4 {[%emt 0:00:56]} g5 {[%emt 0:09:51]} 16. f4 {[%emt 0:02:01]} gxf4 {[%emt 0:05:42]} 17. gxf4 {[%emt 0:00:12]} Qh4 {[%emt 0:01:19]} 18. Nc3 {[%emt 0:09:43]} Rf6 {[%emt 0:10:42]} 19. Qe1 {[%emt 0:12:50]} Qxe1 {[%emt 0:02:50]} 20. Rfxe1 {[%emt 0:01:08]} Rg6 {[%emt 0:02:16]} 21. Kh2 {[%emt 0:00:25]} Nc5 {[%emt 0:01:59]} 22. Rad1 {[%emt 0:02:52]} e4 {[%emt 0:01:28]} 23. Bf1 {[%emt 0:02:13]} a6 {[%emt 0:03:55]} 24. Be2 {[%emt 0:08:55]} Bf6 {[%emt 0:03:01]} 25. Bh5 {[%emt 0:10:55]} Rg7 {[%emt 0:00:38]} 26. Rg1 {[%emt 0:00:49]} Kf8 {[%emt 0:06:56]} 27. Rxg7 {[%emt 0:02:17]} Bxg7 {[%emt 0:00:58]} 28. Rg1 {[%emt 0:04:40]} Bc8 {[%emt 0:02:22]} 29. Be2 {[%emt 0:10:53]} Bd7 {[%emt 0:01:47]} 30. Ra1 {[%emt 0:03:25]} Rc8 {[%emt 0:03:29]} 31. Ra2 {[%emt 0:00:33]} Nd3 {[%emt 0:02:09]} 32. Nd1 {[%emt 0:03:39]} Rxc4 {[%emt 0:03:20]} 33. b3 {[%emt 0:00:38]} Rc8 {[%emt 0:01:44]} 34. Rd2 {[%emt 0:01:08]} b5 {[%emt 0:03:30]} 35. Bxd3 {[%emt 0:03:01]} exd3 {[%emt 0:00:02]} 36. Nf2 {[%emt 0:01:36]} bxa4 {[%emt 0:04:06]} 37. bxa4 {[%emt 0:00:08]} Bxa4 {[%emt 0:00:57]} 38. Nxd3 {[%emt 0:00:09]} a5 {[%emt 0:04:21]} 39. Bb6 {[%emt 0:02:08]} Bc3 {[%emt 0:00:36]} 40. Rg2 {[%emt 0:00:00]} Bb5 {[%emt 0:00:00]} 41. Nc1 {[%emt 0:01:59]} Bf6 {[%emt 0:05:44]} 42. Nb3 {[%emt 0:00:41]} a4 {[%emt 0:02:20]} 43. Bd4 {[%emt 0:00:06]} Kf7 {[%emt 0:06:07]} 44. Bxf6 {[%emt 0:00:11]} Kxf6 {[%emt 0:00:09]} 45. Nd4 {[%emt 0:00:06]} Bd3 {[%emt 0:03:50]} 46. Rg3 {[%emt 0:01:54]} Be4 {[%emt 0:00:54]} 47. Nb5 {[%emt 0:01:09]} Rc2+ {[%emt 0:03:55]} 48. Kg1 {[%emt 0:00:06]} Bxd5 {[%emt 0:00:46]} 49. Nxd6 {[%emt 0:00:50]} Rg2+ {[%emt 0:01:16]} 50. Rxg2 {[%emt 0:00:09]} Bxg2 {[%emt 0:00:02]} 51. Ne8+ {[%emt 0:01:46]} Ke7 {[%emt 0:00:48]} 1-0

[Event "38th Barczay Memorial 2019"]
[Site "Zalakaros"]
[Date "2019.05.25"]
[Round "3.9"]
[White "Persanyi, Barnabas"]
[Black "Geher, Koppany"]
[Result "1-0"]
[ECO "A05"]
[WhiteElo "2404"]
[BlackElo "2113"]
[Annotator "NA"]
[PlyCount "71"]
[EventDate "2019.05.23"]
[EventType "swiss"]
[EventCountry "HUN"]
[SourceTitle "playchess.com"]
[Source "ChessBase"]
[SourceQuality "1"]
[TimeControl "40/5400+30:1800+30"]

1. Nf3 {[%emt 0:00:39]} Nf6 {[%emt 0:00:07]} 2. c4 {[%emt 0:00:19]} g6 {[%emt 0:00:09]} 3. Nc3 {[%emt 0:00:49]} Bg7 {[%emt 0:00:04]} 4. e4 {[%emt 0:01:01]} e5 {[%emt 0:00:05]} 5. Be2 {[%emt 0:01:27]} O-O {[%emt 0:00:23]} 6. O-O {[%emt 0:02:32]} Re8 {[%emt 0:01:56]} 7. d3 {[%emt 0:04:35]} Nc6 {[%emt 0:12:01]} 8. Rb1 {[%emt 0:03:17]} d6 {[%emt 0:03:08]} 9. b4 {[%emt 0:02:27]} Bg4 {[%emt 0:02:59]} 10. Ne1 {[%emt 0:10:33]} Be6 {[%emt 0:17:35]} 11. Nc2 {[%emt 0:02:03]} Nd4 {[%emt 0:02:29]} 12. Nxd4 {[%emt 0:01:30]} exd4 {[%emt 0:00:01]} 13. Nb5 {[%emt 0:02:12]} Bd7 {[%emt 0:33:00]} 14. Nxd4 {[%emt 0:03:43]} Nd5 {[%emt 0:00:13]} 15. cxd5 {[%emt 0:07:30]} Bxd4 {[%emt 0:00:03]} 16. Bb2 {[%emt 0:03:21]} Bxb2 {[%emt 0:02:25]} 17. Rxb2 {[%emt 0:00:08]} f5 {[%emt 0:00:10]} 18. Bf3 {[%emt 0:03:23]} Qf6 {[%emt 0:01:22]} 19. Rb1 {[%emt 0:03:35]} Rac8 {[%emt 0:12:15]} 20. Qc2 {[%emt 0:01:45]} c6 {[%emt 0:05:11]} 21. Qb2 {[%emt 0:06:09]} Kg7 {[%emt 0:02:17]} 22. dxc6 {[%emt 0:00:57]} Bxc6 {[%emt 0:02:16]} 23. b5 {[%emt 0:01:55]} Bd7 {[%emt 0:00:45]} 24. b6 {[%emt 0:10:34]} Qxb2 {[%emt 0:00:29]} 25. Rxb2 {[%emt 0:00:08]} axb6 {[%emt 0:00:31]} 26. Rxb6 {[%emt 0:02:59]} Bc6 {[%emt 0:00:02]} 27. exf5 {[%emt 0:00:25]} gxf5 {[%emt 0:00:01]} 28. Bxc6 {[%emt 0:01:00]} bxc6 {[%emt 0:00:02]} 29. Rc1 {[%emt 0:00:13]} Re2 {[%emt 0:01:25]} 30. g3 {[%emt 0:00:17]} Ra8 {[%emt 0:01:01]} 31. Rbxc6 {[%emt 0:00:49]} Raxa2 {[%emt 0:00:02]} 32. Rxd6 {[%emt 0:00:35]} Kf7 {[%emt 0:00:58]} 33. Rc7+ {[%emt 0:00:49]} Ke8 {[%emt 0:00:00]} 34. Rb6 {[%emt 0:00:19]} Kd8 {[%emt 0:01:00]} 35. Rxh7 {[%emt 0:00:12]} Kc8 {[%emt 0:00:08]} 36. Rf6 {[%emt 0:00:23]} 1-0

[Event "38th Barczay Memorial 2019"]
[Site "Zalakaros"]
[Date "2019.05.25"]
[Round "3.10"]
[White "Gombocz, Ferenc Jr."]
[Black "Srinath, Rao S.V."]
[Result "0-1"]
[ECO "A30"]
[WhiteElo "2214"]
[BlackElo "2395"]
[Annotator "NA"]
[PlyCount "90"]
[EventDate "2019.05.23"]
[EventType "swiss"]
[EventCountry "HUN"]
[SourceTitle "playchess.com"]
[Source "ChessBase"]
[SourceQuality "1"]
[TimeControl "40/5400+30:1800+30"]

1. c4 {[%emt 0:00:13]} c5 {[%emt 0:00:10]} 2. g3 {[%emt 0:00:18]} Nc6 {[%emt 0:00:04]} 3. Bg2 {[%emt 0:00:10]} g5 {[%emt 0:00:05]} 4. Nc3 {[%emt 0:00:35]} Bg7 {[%emt 0:00:09]} 5. e4 {[%emt 0:01:57]} d6 {[%emt 0:00:24]} 6. d3 {[%emt 0:00:29]} h6 {[%emt 0:00:14]} 7. Nge2 {[%emt 0:00:32]} Bg4 {[%emt 0:00:24]} 8. h3 {[%emt 0:02:10]} Bxe2 {[%emt 0:00:05]} 9. Nxe2 {[%emt 0:02:11]} e6 {[%emt 0:00:05]} 10. O-O {[%emt 0:00:45]} Nge7 {[%emt 0:00:10]} 11. f4 {[%emt 0:01:34]} gxf4 {[%emt 0:00:12]} 12. Nxf4 {[%emt 0:00:30]} Qd7 {[%emt 0:01:49]} 13. Kh2 {[%emt 0:04:28]} Be5 {[%emt 0:01:56]} 14. Qh5 {[%emt 0:03:10]} Ng8 {[%emt 0:02:17]} 15. Qd1 {[%emt 0:21:04]} O-O-O {[%emt 0:13:29]} 16. Rb1 {[%emt 0:02:52]} Nge7 {[%emt 0:02:57]} 17. a3 {[%emt 0:02:25]} Rdg8 {[%emt 0:01:45]} 18. b4 {[%emt 0:01:09]} Nd4 {[%emt 0:01:19]} 19. Bb2 {[%emt 0:01:32]} h5 {[%emt 0:02:39]} 20. Bxd4 {[%emt 0:02:34]} cxd4 {[%emt 0:00:41]} 21. Nxh5 {[%emt 0:04:00]} Rg5 {[%emt 0:02:10]} 22. Bf3 {[%emt 0:02:03]} Qe8 {[%emt 0:09:41]} 23. Rb2 {[%emt 0:05:03]} Qg8 {[%emt 0:05:54]} 24. Rg1 {[%emt 0:02:54]} Rhxh5 {[%emt 0:01:48]} 25. Bxh5 {[%emt 0:00:28]} Rxg3 {[%emt 0:00:04]} 26. Rxg3 {[%emt 0:00:20]} Qxg3+ {[%emt 0:00:04]} 27. Kh1 {[%emt 0:00:06]} Qxh3+ {[%emt 0:00:05]} 28. Kg1 {[%emt 0:00:12]} Bf4 {[%emt 0:00:06]} 29. Rf2 {[%emt 0:01:44]} Be3 {[%emt 0:00:24]} 30. Qf3 {[%emt 0:00:19]} Qxf3 {[%emt 0:05:58]} 31. Bxf3 {[%emt 0:00:06]} Ng6 {[%emt 0:02:24]} 32. Kf1 {[%emt 0:00:55]} Bxf2 {[%emt 0:01:20]} 33. Kxf2 {[%emt 0:00:05]} Nf4 {[%emt 0:00:02]} 34. Be2 {[%emt 0:00:40]} Kc7 {[%emt 0:09:42]} 35. Bf1 {[%emt 0:00:51]} Kc6 {[%emt 0:00:06]} 36. Kf3 {[%emt 0:00:13]} Ng6 {[%emt 0:00:03]} 37. b5+ {[%emt 0:02:44]} Kb6 {[%emt 0:03:05]} 38. Kg4 {[%emt 0:00:09]} f6 {[%emt 0:06:42]} 39. Kf3 {[%emt 0:06:07]} Kc5 {[%emt 0:01:11]} 40. Kg4 {[%emt 0:00:00]} Ne5+ {[%emt 0:00:00]} 41. Kf4 {[%emt 0:05:04]} Kb6 {[%emt 0:03:35]} 42. Kg3 {[%emt 0:00:37]} Ka5 {[%emt 0:00:19]} 43. Kf2 {[%emt 0:00:12]} Ka4 {[%emt 0:00:21]} 44. Ke2 {[%emt 0:00:06]} Nd7 {[%emt 0:01:12]} 45. Bh3 {[%emt 0:00:27]} Nc5 {[%emt 0:00:04]} 0-1

[Event "38th Barczay Memorial 2019"]
[Site "Zalakaros"]
[Date "2019.05.25"]
[Round "3.11"]
[White "Meszaros, Tamas"]
[Black "Bereczki, Janos"]
[Result "1/2-1/2"]
[ECO "B12"]
[WhiteElo "2385"]
[BlackElo "2090"]
[Annotator "NA"]
[PlyCount "82"]
[EventDate "2019.05.23"]
[EventType "swiss"]
[EventCountry "HUN"]
[SourceTitle "playchess.com"]
[Source "ChessBase"]
[SourceQuality "1"]
[TimeControl "40/5400+30:1800+30"]

1. e4 {[%emt 0:00:05]} c6 {[%emt 0:10:47]} 2. d4 {[%emt 0:01:08]} d5 {[%emt 0:00:26]} 3. e5 {[%emt 0:00:50]} Bf5 {[%emt 0:00:23]} 4. Nd2 {[%emt 0:00:19]} e6 {[%emt 0:01:46]} 5. Nb3 {[%emt 0:00:07]} Nd7 {[%emt 0:00:59]} 6. Nf3 {[%emt 0:00:07]} a6 {[%emt 0:01:05]} 7. Be2 {[%emt 0:00:48]} c5 {[%emt 0:03:30]} 8. dxc5 {[%emt 0:03:59]} Bxc5 {[%emt 0:02:42]} 9. Nxc5 {[%emt 0:11:47]} Nxc5 {[%emt 0:00:12]} 10. Be3 {[%emt 0:13:06]} Qc7 {[%emt 0:02:57]} 11. Nd4 {[%emt 0:20:23]} Ne7 {[%emt 0:06:16]} 12. f4 {[%emt 0:01:26]} Be4 {[%emt 0:01:04]} 13. O-O {[%emt 0:01:20]} Nf5 {[%emt 0:05:32]} 14. Nxf5 {[%emt 0:07:38]} exf5 {[%emt 0:10:09]} 15. c4 {[%emt 0:13:07]} dxc4 {[%emt 0:07:12]} 16. Bxc4 {[%emt 0:00:31]} b5 {[%emt 0:21:58]} 17. Bxf7+ {[%emt 0:06:36]} Kxf7 {[%emt 0:02:52]} 18. Rc1 {[%emt 0:01:57]} Rhd8 {[%emt 0:11:27]} 19. Rxc5 {[%emt 0:01:22]} Qd7 {[%emt 0:03:45]} 20. Qb3+ {[%emt 0:05:12]} Bd5 {[%emt 0:00:20]} 21. Qc3 {[%emt 0:01:09]} Rac8 {[%emt 0:02:21]} 22. Rd1 {[%emt 0:01:19]} Rxc5 {[%emt 0:00:23]} 23. Qxc5 {[%emt 0:03:36]} Qe6 {[%emt 0:00:22]} 24. Qc7+ {[%emt 0:03:30]} Rd7 {[%emt 0:00:35]} 25. Qc8 {[%emt 0:00:08]} Bc6 {[%emt 0:01:59]} 26. Rxd7+ {[%emt 0:00:57]} Qxd7 {[%emt 0:00:11]} 27. Qxd7+ {[%emt 0:00:29]} Bxd7 {[%emt 0:00:06]} 28. Kf2 {[%emt 0:00:14]} Ke6 {[%emt 0:00:59]} 29. Bc5 {[%emt 0:00:32]} Bc6 {[%emt 0:00:39]} 30. Bf8 {[%emt 0:00:18]} Kf7 {[%emt 0:00:25]} 31. Bd6 {[%emt 0:00:08]} Ke6 {[%emt 0:00:02]} 32. Kg3 {[%emt 0:00:42]} a5 {[%emt 0:00:53]} 33. Kh3 {[%emt 0:00:48]} Bd5 {[%emt 0:01:17]} 34. a3 {[%emt 0:00:11]} a4 {[%emt 0:00:25]} 35. g3 {[%emt 0:00:48]} Kf7 {[%emt 0:00:35]} 36. Kh4 {[%emt 0:00:29]} h6 {[%emt 0:00:35]} 37. h3 {[%emt 0:00:42]} g6 {[%emt 0:00:16]} 38. g4 {[%emt 0:00:20]} Be6 {[%emt 0:00:26]} 39. Kg3 {[%emt 0:00:11]} h5 {[%emt 0:00:38]} 40. gxh5 {[%emt 0:00:00]} gxh5 {[%emt 0:00:00]} 41. Kf3 {[%emt 0:00:51]} Bc4 {[%emt 0:00:42] Ke4} 1/2-1/2

[Event "38th Barczay Memorial 2019"]
[Site "Zalakaros"]
[Date "2019.05.26"]
[Round "4.3"]
[White "Srinath, Rao S.V."]
[Black "Varga, Zoltan"]
[Result "1-0"]
[ECO "B04"]
[WhiteElo "2395"]
[BlackElo "2457"]
[Annotator "ChessBase"]
[PlyCount "153"]
[EventDate "2019.05.23"]
[EventType "swiss"]
[EventCountry "HUN"]
[SourceTitle "playchess.com"]
[Source "ChessBase"]
[SourceQuality "1"]
[TimeControl "40/5400+30:1800+30"]

1. e4 {[%emt 0:01:17]} Nf6 {[%emt 0:12:16]} 2. e5 {[%emt 0:00:40]} Nd5 {[%emt 0:00:04]} 3. d4 {[%emt 0:00:04]} d6 {[%emt 0:00:03]} 4. Nf3 {[%emt 0:00:33]} dxe5 {[%emt 0:03:36]} 5. Nxe5 {[%emt 0:00:05]} c6 {[%emt 0:00:03]} 6. Be2 {[%emt 0:00:27]} Bf5 {[%emt 0:01:28]} 7. O-O {[%emt 0:01:41]} Nd7 {[%emt 0:00:04]} 8. Nf3 {[%emt 0:00:15]} e6 {[%emt 0:00:28]} 9. c4 {[%emt 0:01:05]} N5f6 {[%emt 0:00:06]} 10. Nc3 {[%emt 0:00:15]} Bb4 {[%emt 0:03:57]} 11. Qb3 {[%emt 0:03:22]} a5 {[%emt 0:03:42]} 12. Na4 {[%emt 0:06:51]} b6 {[%emt 0:02:16]} 13. Bg5 {[%emt 0:07:53]} Qc7 {[%emt 0:12:14]} 14. Bxf6 gxf6 {[%emt 0:05:54]} 15. Nh4 {[%emt 0:12:02]} Bg6 {[%emt 0:03:41]} 16. d5 {[%emt 0:11:23]} Nc5 {[%emt 0:12:33]} 17. Nxc5 Bxc5 {[%emt 0:00:02]} 18. Qf3 {[%emt 0:02:49]} Ke7 {[%emt 0:15:33]} 19. Rae1 {[%emt 0:06:15]} Bb4 {[%emt 0:03:03]} 20. Rd1 {[%emt 0:02:33]} Qe5 {[%emt 0:06:08]} 21. dxe6 {[%emt 0:04:50]} Be4 {[%emt 0:04:47]} 22. Qe3 {[%emt 0:08:01]} Bc5 {[%emt 0:04:23]} 23. Qh6 {[%emt 0:03:01]} Qg5 {[%emt 0:00:46]} 24. Qxg5 {[%emt 0:00:57]} fxg5 {[%emt 0:00:04]} 25. Bf3 {[%emt 0:03:56]} Bxf3 {[%emt 0:00:40]} 26. Nxf3 {[%emt 0:00:10]} f6 {[%emt 0:00:02]} 27. Rd7+ {[%emt 0:05:13]} Kxe6 {[%emt 0:00:03]} 28. Rfd1 {[%emt 0:00:11]} h5 {[%emt 0:01:23]} 29. R7d3 {[%emt 0:04:23]} Rac8 {[%emt 0:01:13]} 30. h4 {[%emt 0:00:55]} Kf5 {[%emt 0:01:07]} 31. Rd7 {[%emt 0:02:37]} Rhe8 {[%emt 0:00:33]} 32. hxg5 {[%emt 0:00:45]} fxg5 {[%emt 0:02:02]} 33. Rf7+ {[%emt 0:03:13]} Kg6 {[%emt 0:00:04]} 34. Rdd7 {[%emt 0:00:08]} Bf8 {[%emt 0:01:05]} 35. Rc7 {[%emt 0:04:29]} Rxc7 36. Rxc7 {[%emt 0:00:05]} Re6 {[%emt 0:01:56]} 37. Rxc6 {[%emt 0:03:05]} Rxc6 {[%emt 0:00:01]} 38. Ne5+ {[%emt 0:00:04]} Kf5 {[%emt 0:00:02]} 39. Nxc6 {[%emt 0:00:05]} Bc5 {[%emt 0:00:17]} 40. Kf1 {[%emt 0:00:00]} g4 {[%emt 0:00:00]} 41. g3 {[%emt 0:01:10]} Kg5 {[%emt 0:04:25]} 42. Ke2 {[%emt 0:01:05]} h4 {[%emt 0:00:07]} 43. gxh4+ {[%emt 0:00:08]} Kxh4 {[%emt 0:00:05]} 44. Ne5 {[%emt 0:01:56]} Bd4 {[%emt 0:00:44]} 45. Nd3 {[%emt 0:00:04]} Kg5 {[%emt 0:00:04]} 46. b3 {[%emt 0:01:50]} Kf5 {[%emt 0:00:12]} 47. Ne1 {[%emt 0:01:16]} Ke4 {[%emt 0:00:43]} 48. f3+ {[%emt 0:00:34]} gxf3+ {[%emt 0:00:17]} 49. Nxf3 {[%emt 0:00:05]} Bf6 {[%emt 0:02:19]} 50. Ne1 {[%emt 0:02:11]} Kd4 {[%emt 0:07:10]} 51. Kd2 {[%emt 0:00:23]} a4 {[%emt 0:00:49]} 52. Nc2+ {[%emt 0:01:02]} Kc5 {[%emt 0:00:14]} 53. Kd3 {[%emt 0:00:12]} axb3 54. axb3 {[%emt 0:00:03]} Bb2 {[%emt 0:02:01]} 55. b4+ {[%emt 0:00:52]} Kd6 {[%emt 0:00:30]} 56. Nd4 {[%emt 0:02:04]} Ba1 {[%emt 0:00:29]} 57. Ke4 {[%emt 0:00:56]} Bb2 {[%emt 0:00:07]} 58. Nb5+ {[%emt 0:00:38]} Kc6 {[%emt 0:01:33]} 59. Kf5 {[%emt 0:00:13]} Bg7 {[%emt 0:01:56]} 60. Ke6 {[%emt 0:00:26]} Bf8 {[%emt 0:00:45]} 61. Nd4+ {[%emt 0:00:05]} Kb7 {[%emt 0:00:08]} 62. b5 {[%emt 0:00:23]} Bc5 {[%emt 0:01:25]} 63. Nb3 {[%emt 0:00:54]} Be3 {[%emt 0:00:11]} 64. Kd7 {[%emt 0:00:09]} Bg1 {[%emt 0:00:55]} 65. Nd2 {[%emt 0:00:21]} Bf2 {[%emt 0:00:32]} 66. Ne4 {[%emt 0:00:12]} Be3 {[%emt 0:00:21]} 67. Nd6+ {[%emt 0:00:20]} Kb8 {[%emt 0:00:26]} 68. Kc6 {[%emt 0:00:45]} Bc5 {[%emt 0:00:38]} 69. Ne8 {[%emt 0:01:10]} Bg1 {[%emt 0:00:08]} 70. Nc7 {[%emt 0:00:08]} Bf2 {[%emt 0:00:07]} 71. Na6+ {[%emt 0:00:18]} Ka7 {[%emt 0:02:08]} 72. Kc7 {[%emt 0:01:29]} Bg3+ {[%emt 0:00:27]} 73. Kc8 {[%emt 0:00:04]} Bf2 {[%emt 0:00:04]} 74. Nb8 {[%emt 0:00:58]} Bg1 {[%emt 0:00:11]} 75. Nc6+ {[%emt 0:00:17]} Ka8 {[%emt 0:00:06]} 76. Kc7 {[%emt 0:00:11]} Bf2 {[%emt 0:00:34]} 77. Ne7 {[%emt 0:00:10]} 1-0

[Event "38th Barczay Memorial 2019"]
[Site "Zalakaros"]
[Date "2019.05.26"]
[Round "4.5"]
[White "Radovanovic, Jovica"]
[Black "Gschnitzer, Adrian"]
[Result "0-1"]
[ECO "A46"]
[WhiteElo "2306"]
[BlackElo "2419"]
[Annotator "NA"]
[PlyCount "78"]
[EventDate "2019.05.23"]
[EventType "swiss"]
[EventCountry "HUN"]
[SourceTitle "playchess.com"]
[Source "ChessBase"]
[SourceQuality "1"]
[TimeControl "40/5400+30:1800+30"]

1. d4 {[%emt 0:01:30]} Nf6 {[%emt 0:00:09]} 2. Nf3 {[%emt 0:00:29]} c5 {[%emt 0:00:08]} 3. c3 {[%emt 0:00:06]} d5 {[%emt 0:00:12]} 4. a3 {[%emt 0:02:08]} e6 {[%emt 0:01:54]} 5. Bf4 {[%emt 0:00:27]} Nc6 {[%emt 0:00:49]} 6. b4 {[%emt 0:03:13]} c4 {[%emt 0:11:16]} 7. g3 {[%emt 0:05:21]} Ne4 {[%emt 0:02:44]} 8. Bg2 {[%emt 0:07:55]} g5 {[%emt 0:06:12]} 9. Be3 {[%emt 0:00:25]} Bg7 {[%emt 0:01:38]} 10. Qc1 {[%emt 0:08:49]} h6 {[%emt 0:00:46]} 11. h4 {[%emt 0:04:22]} f6 {[%emt 0:08:07]} 12. Nbd2 {[%emt 0:11:40]} Nd6 {[%emt 0:01:28]} 13. a4 {[%emt 0:02:12]} Bd7 {[%emt 0:02:09]} 14. Qc2 {[%emt 0:03:20]} Qe7 {[%emt 0:02:34]} 15. hxg5 hxg5 {[%emt 0:00:14]} 16. Qg6+ {[%emt 0:04:54]} Qf7 {[%emt 0:00:20]} 17. Rxh8+ {[%emt 0:00:36]} Bxh8 {[%emt 0:00:06]} 18. Qxf7+ {[%emt 0:03:15]} Kxf7 {[%emt 0:00:24]} 19. g4 {[%emt 0:02:08]} Ne7 {[%emt 0:02:00]} 20. Kd1 {[%emt 0:05:04]} Bg7 {[%emt 0:01:11]} 21. Kc2 {[%emt 0:00:21]} Rh8 {[%emt 0:06:06]} 22. a5 {[%emt 0:00:08]} Ng6 {[%emt 0:01:23]} 23. Rh1 {[%emt 0:01:13]} Rxh1 24. Bxh1 {[%emt 0:00:23]} Nf4 {[%emt 0:12:10]} 25. Bxf4 {[%emt 0:06:15]} gxf4 {[%emt 0:00:10]} 26. Nh4 {[%emt 0:05:34]} Bh6 {[%emt 0:00:57]} 27. Bf3 {[%emt 0:00:46]} Bc6 {[%emt 0:03:13]} 28. Bg2 {[%emt 0:14:00]} a6 {[%emt 0:01:51]} 29. Bf3 {[%emt 0:03:22]} Bg5 {[%emt 0:01:52]} 30. Ng2 {[%emt 0:00:19]} e5 {[%emt 0:00:50]} 31. dxe5 {[%emt 0:02:03]} fxe5 {[%emt 0:00:06]} 32. e3 {[%emt 0:00:21]} e4 {[%emt 0:02:58]} 33. exf4 {[%emt 0:01:54]} exf3 {[%emt 0:00:57]} 34. Nxf3 {[%emt 0:00:03]} Bf6 {[%emt 0:00:19]} 35. Ne5+ {[%emt 0:01:39]} Bxe5 {[%emt 0:06:16]} 36. fxe5 {[%emt 0:00:01]} Ne4 {[%emt 0:00:05]} 37. f4 {[%emt 0:00:34]} Nf2 {[%emt 0:00:08]} 38. g5 {[%emt 0:01:15]} d4 {[%emt 0:00:22]} 39. cxd4 {[%emt 0:00:53]} Bxg2 {[%emt 0:00:20]} 0-1

[Event "38th Barczay Memorial 2019"]
[Site "Zalakaros"]
[Date "2019.05.26"]
[Round "4.6"]
[White "Horvath, Adam"]
[Black "Peczely, Sebastian Zsombor"]
[Result "1-0"]
[ECO "C88"]
[WhiteElo "2531"]
[BlackElo "2245"]
[Annotator "ChessBase"]
[PlyCount "117"]
[EventDate "2019.05.23"]
[EventType "swiss"]
[EventCountry "HUN"]
[SourceTitle "playchess.com"]
[Source "ChessBase"]
[SourceQuality "1"]
[TimeControl "40/5400+30:1800+30"]

1. e4 {[%emt 0:01:54]} e5 {[%emt 0:03:09]} 2. Nf3 {[%emt 0:00:08]} Nc6 {[%emt 0:00:07]} 3. Bb5 {[%emt 0:00:04]} a6 {[%emt 0:00:06]} 4. Ba4 {[%emt 0:00:03]} Nf6 {[%emt 0:00:34]} 5. O-O {[%emt 0:00:35]} Be7 {[%emt 0:00:07]} 6. Re1 {[%emt 0:00:16]} b5 {[%emt 0:00:06]} 7. Bb3 {[%emt 0:00:03]} d6 {[%emt 0:00:19]} 8. a4 {[%emt 0:00:15]} b4 {[%emt 0:00:48]} 9. a5 {[%emt 0:02:43]} O-O {[%emt 0:01:17]} 10. d3 {[%emt 0:00:26]} Bg4 {[%emt 0:00:36]} 11. c3 {[%emt 0:00:44]} Rb8 {[%emt 0:15:10]} 12. Nbd2 {[%emt 0:01:57]} Qc8 {[%emt 0:01:05]} 13. h3 {[%emt 0:23:23]} Bh5 {[%emt 0:00:43]} 14. Bc4 {[%emt 0:01:45]} Nd8 {[%emt 0:04:08]} 15. d4 {[%emt 0:04:54]} Ne6 {[%emt 0:14:53]} 16. dxe5 {[%emt 0:17:34]} dxe5 {[%emt 0:00:10]} 17. Nf1 {[%emt 0:00:08]} Bxf3 18. Qxf3 {[%emt 0:00:58]} Ne8 {[%emt 0:27:40]} 19. Qe2 {[%emt 0:03:56]} Nc5 {[%emt 0:03:12]} 20. Bd2 {[%emt 0:11:27]} bxc3 {[%emt 0:00:54]} 21. Bxc3 {[%emt 0:00:04]} Nd6 {[%emt 0:03:31]} 22. Bd5 {[%emt 0:06:36]} Bf6 {[%emt 0:02:10]} 23. Ng3 {[%emt 0:00:55]} g6 {[%emt 0:05:22]} 24. b4 {[%emt 0:05:21]} Nb5 {[%emt 0:00:40]} 25. Qf3 {[%emt 0:10:22]} Nxc3 {[%emt 0:02:44]} 26. Qxc3 {[%emt 0:01:30]} Ne6 {[%emt 0:00:31]} 27. Ne2 {[%emt 0:00:32]} Kg7 {[%emt 0:03:25]} 28. Rec1 {[%emt 0:01:11]} Re8 {[%emt 0:01:57]} 29. Rab1 {[%emt 0:01:00]} Re7 {[%emt 0:04:33]} 30. Qc4 {[%emt 0:03:19]} Nf4 {[%emt 0:02:07]} 31. Nxf4 {[%emt 0:00:36]} exf4 {[%emt 0:00:05]} 32. Qd3 {[%emt 0:00:11]} Be5 {[%emt 0:00:49]} 33. Rc6 {[%emt 0:00:07]} Bd6 {[%emt 0:00:53]} 34. Rb3 {[%emt 0:00:27]} f6 {[%emt 0:00:22]} 35. Rxa6 {[%emt 0:01:20]} Bxb4 {[%emt 0:00:33]} 36. Qd4 {[%emt 0:00:40]} Bd6 {[%emt 0:00:03]} 37. Rxb8 Qxb8 {[%emt 0:00:04]} 38. Qd3 {[%emt 0:00:47]} Qb4 {[%emt 0:00:48]} 39. Ra8 {[%emt 0:00:18]} Qe1+ {[%emt 0:00:50]} 40. Qf1 {[%emt 0:00:00]} Qxf1+ {[%emt 0:00:00]} 41. Kxf1 {[%emt 0:00:13]} c6 {[%emt 0:03:08]} 42. Bxc6 {[%emt 0:02:44]} Bc5 {[%emt 0:01:27]} 43. Rc8 {[%emt 0:02:00]} f5 {[%emt 0:09:23]} 44. f3 {[%emt 0:05:12]} Be3 {[%emt 0:01:36]} 45. a6 {[%emt 0:00:52]} fxe4 46. fxe4 {[%emt 0:00:35]} Kf6 {[%emt 0:05:31]} 47. Ke2 {[%emt 0:01:09]} h5 {[%emt 0:01:50]} 48. Bd5 {[%emt 0:06:33]} g5 {[%emt 0:01:13]} 49. Rc3 {[%emt 0:02:01]} Bg1 {[%emt 0:04:25]} 50. Rc6+ {[%emt 0:00:21]} Kg7 {[%emt 0:01:27]} 51. Kf3 {[%emt 0:00:34]} Be3 {[%emt 0:01:12]} 52. Be6 {[%emt 0:00:39]} Bd4 {[%emt 0:02:33]} 53. Bf5 {[%emt 0:00:35]} Kf7 {[%emt 0:00:12]} 54. h4 {[%emt 0:03:58]} gxh4 {[%emt 0:01:12]} 55. Kxf4 {[%emt 0:00:04]} Kf8 {[%emt 0:01:01]} 56. Rc4 {[%emt 0:01:16]} Be5+ {[%emt 0:00:43]} 57. Kg5 {[%emt 0:00:06]} Ra7 {[%emt 0:00:11]} 58. Rc6 {[%emt 0:00:11]} Rg7+ {[%emt 0:00:21]} 59. Bg6 {[%emt 0:00:11]} 1-0